[Event "Lueneburg Open-A 2019"]
[Site "Lueneburg"]
[Date "2019.08.10"]
[Round "8.4"]
[White "Jahncke, Giso"]
[Black "Carlstedt, Jonathan"]
[Result "0-1"]
[ECO "D27"]
[WhiteElo "2325"]
[BlackElo "2408"]
[Annotator "NA"]
[PlyCount "141"]
[EventDate "2019.08.03"]
[EventType "swiss"]
[EventCountry "GER"]
[SourceTitle "playchess.com"]
[Source "ChessBase"]
[SourceQuality "1"]
[TimeControl "40/5400+30:1800+30"]

1. d4 d5 2. c4 dxc4 3. e3 Nf6 4. Bxc4 e6 5. Nf3 c5 6. O-O a6 7. dxc5 Bxc5 8. Qxd8+ Kxd8 9. Be2 Ke7 10. Nbd2 Nbd7 11. b3 b6 12. Bb2 Bb7 13. Rac1 Rac8 14. Rfd1 Rhd8 15. Ne1 b5 16. Nd3 Bd6 17. a4 bxa4 18. Nc4 Bb8 19. Ba3+ Ke8 20. bxa4 Bc6 21. Ndb2 Bd5 22. Na5 Be5 23. Nd3 Bc7 24. Bb4 g5 25. g3 Bb6 26. Nb2 Rb8 27. Nbc4 Bc7 28. Nd6+ Bxd6 29. Bxd6 Rb2 30. Bd3 Bf3 31. Bc7 Ra8 32. Rf1 Ra2 33. Ra1 Rd2 34. Ra3 Rc8 35. Bd6 Nc5 36. Rc1 Nxd3 37. Rxc8+ Kd7 38. Rc7+ Kxd6 39. Nc4+ Kxc7 40. Nxd2 Ne5 41. Rc3+ Bc6 42. f4 Nd5 43. Ra3 gxf4 44. exf4 Nd7 45. a5 Nc5 46. Nc4 Bb5 47. Ne5 f6 48. Nf3 Kd6 49. h4 h6 50. Nh2 Nd3 51. h5 f5 52. Nf3 Nf6 53. Nd4 Bc4 54. Rc3 Kc5 55. Nxe6+ Kb4 56. Rxc4+ Kxc4 57. Ng7 Kb5 58. Nxf5 Ng8 59. Kg2 Kxa5 60. Kf3 Kb4 61. g4 a5 62. g5 a4 63. Nd4 Kc4 64. Nc2 Nb4 65. Na3+ Kb3 66. Nb5 Nc6 67. Ke4 Kb4 68. Nd6 a3 69. Nf5 a2 70. Ne3 Kb3 71. Kd5 {[%emt 1:04:32]} 0-1

[Event "Lueneburg Open-A 2019"]
[Site "Lueneburg"]
[Date "2019.08.10"]
[Round "8.5"]
[White "Sriram, Jha"]
[Black "Hommer, Jeremy"]
[Result "1-0"]
[ECO "A84"]
[WhiteElo "2381"]
[BlackElo "2083"]
[Annotator "NA"]
[PlyCount "93"]
[EventDate "2019.08.03"]
[EventType "swiss"]
[EventCountry "GER"]
[SourceTitle "playchess.com"]
[Source "ChessBase"]
[SourceQuality "1"]
[TimeControl "40/5400+30:1800+30"]

1. Nf3 {[%emt 0:00:00]} e6 {[%emt 0:00:00]} 2. g3 {[%emt 0:00:25]} b6 {[%emt 0:00:00]} 3. Bg2 {[%emt 0:00:13]} Bb7 {[%emt 0:00:00]} 4. O-O {[%emt 0:00:27]} f5 {[%emt 0:00:07]} 5. d4 {[%emt 0:01:52]} Nf6 {[%emt 0:00:05]} 6. c4 {[%emt 0:00:04]} Be7 {[%emt 0:02:37]} 7. Nc3 {[%emt 0:00:33]} O-O {[%emt 0:00:17]} 8. d5 {[%emt 0:00:23]} Na6 {[%emt 0:18:57]} 9. Nd4 {[%emt 0:03:45]} Bc5 {[%emt 0:05:19]} 10. Nb3 {[%emt 0:26:24]} e5 {[%emt 0:16:22]} 11. Nxc5 {[%emt 0:00:33]} Nxc5 {[%emt 0:00:13]} 12. b4 {[%emt 0:01:19]} Na6 {[%emt 0:02:31]} 13. Rb1 {[%emt 0:07:01]} d6 {[%emt 0:00:16]} 14. Qc2 {[%emt 0:00:33]} g6 {[%emt 0:02:12]} 15. e4 {[%emt 0:04:44]} Bc8 {[%emt 0:04:38]} 16. Bg5 {[%emt 0:04:06]} Nb8 {[%emt 0:04:46]} 17. c5 {[%emt 0:04:08]} bxc5 {[%emt 0:01:19]} 18. bxc5 {[%emt 0:00:12]} Nbd7 {[%emt 0:00:16]} 19. exf5 {[%emt 0:01:56]} gxf5 {[%emt 0:02:55]} 20. cxd6 {[%emt 0:01:51]} cxd6 {[%emt 0:00:23]} 21. Bh6 {[%emt 0:01:17]} Rf7 {[%emt 0:02:15]} 22. Qxf5 {[%emt 0:00:21]} Nc5 {[%emt 0:00:42]} 23. Qg5+ {[%emt 0:00:08]} Kh8 {[%emt 0:00:02]} 24. f4 {[%emt 0:09:28]} Ba6 {[%emt 0:03:15]} 25. fxe5 {[%emt 0:06:40]} dxe5 {[%emt 0:03:40]} 26. d6 {[%emt 0:10:05]} Bxf1 {[%emt 0:08:49]} 27. Bxa8 {[%emt 0:00:45]} Bc4 {[%emt 0:02:10]} 28. Bd5 {[%emt 0:03:10]} Bxd5 {[%emt 0:03:45]} 29. Nxd5 {[%emt 0:00:09]} Ncd7 {[%emt 0:01:50]} 30. Rf1 {[%emt 0:01:47]} e4 {[%emt 0:04:41]} 31. Kg2 {[%emt 0:03:24]} e3 {[%emt 0:02:51]} 32. Nxe3 {[%emt 0:01:10]} Qa8+ {[%emt 0:00:25]} 33. Kg1 {[%emt 0:00:30]} Ne4 {[%emt 0:00:15]} 34. Qg4 {[%emt 0:03:03]} Ne5 {[%emt 0:00:35]} 35. Rxf7 {[%emt 0:03:31]} Nxg4 {[%emt 0:00:30]} 36. Nxg4 {[%emt 0:00:07]} Kg8 {[%emt 0:00:30]} 37. Rg7+ {[%emt 0:00:12]} Kh8 {[%emt 0:00:09]} 38. Ne5 {[%emt 0:00:36]} Nxd6 {[%emt 0:00:56]} 39. Nf7+ {[%emt 0:00:30]} Nxf7 {[%emt 0:00:09]} 40. Rxf7 {[%emt 0:00:01]} Kg8 {[%emt 0:00:27]} 41. Rf8+ {[%emt 0:30:04]} Qxf8 {[%emt 0:30:07]} 42. Bxf8 {[%emt 0:00:02]} Kxf8 {[%emt 0:00:07]} 43. Kf2 {[%emt 0:00:02]} h5 {[%emt 0:00:36]} 44. Ke3 {[%emt 0:00:33]} Ke7 {[%emt 0:00:05]} 45. Kf4 {[%emt 0:00:17]} Kf6 {[%emt 0:00:05]} 46. h4 {[%emt 0:00:34]} Kg6 {[%emt 0:00:22]} 47. Ke4 {[%emt 0:04:35]} 1-0

[Event "Lueneburg Open-A 2019"]
[Site "Lueneburg"]
[Date "2019.08.10"]
[Round "8.6"]
[White "Colpe, Malte"]
[Black "Jurkic, Bosiljko"]
[Result "1-0"]
[ECO "D36"]
[WhiteElo "2367"]
[BlackElo "2046"]
[Annotator "NA"]
[PlyCount "57"]
[EventDate "2019.08.03"]
[EventType "swiss"]
[EventCountry "GER"]
[SourceTitle "playchess.com"]
[Source "ChessBase"]
[SourceQuality "1"]
[TimeControl "40/5400+30:1800+30"]

1. d4 {[%emt 0:00:00]} Nf6 {[%emt 0:00:00]} 2. c4 {[%emt 0:00:00]} e6 {[%emt 0:00:12]} 3. Nc3 {[%emt 0:00:00]} d5 {[%emt 0:00:10]} 4. cxd5 {[%emt 0:00:00]} exd5 {[%emt 0:00:59]} 5. Bg5 {[%emt 0:00:03]} Be7 {[%emt 0:00:13]} 6. e3 {[%emt 0:00:19]} c6 {[%emt 0:00:18]} 7. Bd3 {[%emt 0:00:13]} O-O {[%emt 0:00:24]} 8. Qc2 {[%emt 0:00:58]} Nbd7 {[%emt 0:00:53]} 9. h3 {[%emt 0:00:22]} Re8 {[%emt 0:00:38]} 10. Bf4 {[%emt 0:00:33]} Nf8 {[%emt 0:00:35]} 11. Nf3 {[%emt 0:00:20]} h6 {[%emt 0:03:38]} 12. O-O-O {[%emt 0:03:15]} Be6 {[%emt 0:00:54]} 13. Kb1 {[%emt 0:01:00]} N8d7 {[%emt 0:02:24]} 14. g4 {[%emt 0:03:12]} c5 {[%emt 0:08:55]} 15. Rhg1 {[%emt 0:15:59]} c4 {[%emt 0:09:18]} 16. Bf5 {[%emt 0:01:24]} Nf8 {[%emt 0:00:24]} 17. h4 {[%emt 0:06:46]} Qc8 {[%emt 0:06:01]} 18. Ne5 {[%emt 0:04:28]} a6 {[%emt 0:15:17]} 19. f3 {[%emt 0:07:55]} b5 {[%emt 0:04:12]} 20. e4 {[%emt 0:02:12]} Rd8 {[%emt 0:12:18]} 21. g5 {[%emt 0:08:10]} hxg5 {[%emt 0:03:31]} 22. hxg5 {[%emt 0:02:07]} Nh5 {[%emt 0:02:18]} 23. Be3 {[%emt 0:09:32]} Qb7 {[%emt 0:10:20]} 24. g6 {[%emt 0:06:49]} f6 {[%emt 0:06:31]} 25. Bxe6+ {[%emt 0:03:14]} Nxe6 {[%emt 0:00:07]} 26. Qh2 {[%emt 0:00:36]} fxe5 {[%emt 0:02:05]} 27. Qxh5 {[%emt 0:00:06]} Bb4 {[%emt 0:04:24]} 28. Rh1 {[%emt 0:01:42]} Kf8 {[%emt 0:00:58]} 29. Qf5+ {[%emt 0:00:15]} 1-0

[Event "Lueneburg Open-A 2019"]
[Site "Lueneburg"]
[Date "2019.08.10"]
[Round "8.7"]
[White "Lubbe, Melanie"]
[Black "Kolbus, Dietmar"]
[Result "0-1"]
[ECO "B84"]
[WhiteElo "2258"]
[BlackElo "2281"]
[Annotator "NA"]
[PlyCount "114"]
[EventDate "2019.08.03"]
[EventType "swiss"]
[EventCountry "GER"]
[SourceTitle "playchess.com"]
[Source "ChessBase"]
[SourceQuality "1"]
[TimeControl "40/5400+30:1800+30"]

1. e4 {[%emt 0:00:00]} c5 {[%emt 0:00:00]} 2. Nf3 {[%emt 0:00:00]} d6 {[%emt 0:00:00]} 3. d4 {[%emt 0:00:00]} cxd4 {[%emt 0:00:00]} 4. Nxd4 {[%emt 0:00:00]} Nf6 {[%emt 0:00:00]} 5. Nc3 {[%emt 0:00:00]} a6 {[%emt 0:00:00]} 6. Be3 {[%emt 0:00:54]} e6 {[%emt 0:00:19]} 7. Be2 {[%emt 0:08:55]} Nbd7 {[%emt 0:00:35]} 8. f4 {[%emt 0:03:15]} Qc7 {[%emt 0:00:14]} 9. O-O {[%emt 0:05:13]} b5 {[%emt 0:00:19]} 10. a3 {[%emt 0:01:17]} Bb7 {[%emt 0:00:06]} 11. Bd3 {[%emt 0:02:09]} Be7 {[%emt 0:00:11]} 12. Qf3 {[%emt 0:03:15]} Nc5 {[%emt 0:02:53]} 13. Rae1 {[%emt 0:05:25]} O-O {[%emt 0:07:43]} 14. g4 {[%emt 0:12:00]} d5 {[%emt 0:03:47]} 15. e5 {[%emt 0:00:34]} Nfe4 {[%emt 0:00:15]} 16. Bxe4 {[%emt 0:06:35]} Nxe4 {[%emt 0:03:45]} 17. Nxe4 {[%emt 0:00:36]} dxe4 {[%emt 0:00:12]} 18. Qg3 {[%emt 0:00:40]} Rad8 {[%emt 0:29:01]} 19. c3 {[%emt 0:05:21]} Bd5 {[%emt 0:07:13]} 20. f5 {[%emt 0:09:02]} f6 {[%emt 0:06:41]} 21. fxe6 {[%emt 0:08:29]} fxe5 {[%emt 0:00:35]} 22. Rf5 {[%emt 0:06:32]} Bd6 {[%emt 0:00:34]} 23. Rxf8+ {[%emt 0:03:18]} Rxf8 {[%emt 0:00:11]} 24. Nf5 {[%emt 0:00:13]} Bxe6 {[%emt 0:00:16]} 25. Rf1 {[%emt 0:06:36]} Bxf5 {[%emt 0:08:46]} 26. gxf5 {[%emt 0:00:14]} Bc5 {[%emt 0:00:27]} 27. Bxc5 {[%emt 0:07:02]} Qxc5+ {[%emt 0:00:03]} 28. Kh1 {[%emt 0:00:18]} Qd5 {[%emt 0:05:15]} 29. Kg1 {[%emt 0:00:43]} Rf6 {[%emt 0:02:12]} 30. Rf2 {[%emt 0:00:48]} g6 {[%emt 0:05:03]} 31. h4 {[%emt 0:01:36]} Qf7 {[%emt 0:07:25]} 32. Qxe5 {[%emt 0:01:36]} Rxf5 {[%emt 0:00:10]} 33. Rxf5 {[%emt 0:01:42]} Qxf5 {[%emt 0:01:04]} 34. Qe7 {[%emt 0:00:50]} Qf4 {[%emt 0:01:26]} 35. h5 {[%emt 0:01:06]} Qc1+ {[%emt 0:01:59]} 36. Kf2 {[%emt 0:00:13]} Qd2+ {[%emt 0:03:49]} 37. Kg3 {[%emt 0:00:20]} Qe3+ {[%emt 0:00:09]} 38. Kg2 {[%emt 0:00:57]} Qf3+ {[%emt 0:00:43]} 39. Kg1 {[%emt 0:00:02]} gxh5 {[%emt 0:01:12]} 40. Qe8+ {[%emt 0:01:09]} Kg7 {[%emt 0:00:11]} 41. Kh2 {[%emt 0:11:26]} Qf2+ {[%emt 0:18:44]} 42. Kh1 {[%emt 0:01:00]} Qf5 {[%emt 0:03:38]} 43. b3 {[%emt 0:07:26]} Kh6 {[%emt 0:02:47]} 44. c4 {[%emt 0:03:05]} bxc4 {[%emt 0:00:17]} 45. Qc6+ {[%emt 0:00:12]} Kg5 {[%emt 0:00:13]} 46. Qxc4 {[%emt 0:01:12]} h4 {[%emt 0:00:19]} 47. Qg8+ {[%emt 0:02:37]} Kf4 {[%emt 0:00:48]} 48. Kh2 {[%emt 0:00:05]} Ke3 {[%emt 0:00:28]} 49. Qh8 {[%emt 0:04:56]} Qf2+ {[%emt 0:00:27]} 50. Kh1 {[%emt 0:00:01]} Kd3 {[%emt 0:02:01]} 51. Qxh7 {[%emt 0:00:51]} Qf3+ {[%emt 0:00:21]} 52. Kh2 {[%emt 0:00:10]} h3 {[%emt 0:00:12]} 53. Qd7+ {[%emt 0:00:59]} Kc2 {[%emt 0:00:27]} 54. Qc8+ {[%emt 0:01:06]} Kb2 {[%emt 0:00:30]} 55. Qh8+ {[%emt 0:00:33]} Ka2 {[%emt 0:00:22]} 56. Qg8 {[%emt 0:01:59]} Kxa3 {[%emt 0:00:38]} 57. b4 {[%emt 0:00:48]} Qg2+ {[%emt 0:00:24]} 0-1

[Event "Lueneburg Open-A 2019"]
[Site "Lueneburg"]
[Date "2019.08.10"]
[Round "8.8"]
[White "Weishaeutel, Moritz"]
[Black "Wachinger, David"]
[Result "0-1"]
[ECO "B94"]
[WhiteElo "2276"]
[BlackElo "2045"]
[Annotator "NA"]
[PlyCount "94"]
[EventDate "2019.08.03"]
[EventType "swiss"]
[EventCountry "GER"]
[SourceTitle "playchess.com"]
[Source "ChessBase"]
[SourceQuality "1"]
[TimeControl "40/5400+30:1800+30"]

1. e4 {[%emt 0:00:00]} c5 {[%emt 0:00:00]} 2. Nf3 {[%emt 0:00:00]} d6 {[%emt 0:00:00]} 3. d4 {[%emt 0:00:00]} cxd4 {[%emt 0:00:00]} 4. Nxd4 {[%emt 0:00:00]} Nf6 {[%emt 0:00:07]} 5. Nc3 {[%emt 0:00:00]} a6 {[%emt 0:00:18]} 6. Bg5 {[%emt 0:00:00]} Nbd7 {[%emt 0:00:59]} 7. Qe2 {[%emt 0:00:05]} h6 {[%emt 0:00:46]} 8. Bh4 {[%emt 0:00:04]} g6 {[%emt 0:00:45]} 9. f4 {[%emt 0:00:05]} e5 {[%emt 0:01:02]} 10. fxe5 {[%emt 0:00:05]} dxe5 {[%emt 0:00:12]} 11. O-O-O {[%emt 0:00:08]} Qc7 {[%emt 0:00:50]} 12. Nb3 {[%emt 0:00:07]} b5 {[%emt 0:00:33]} 13. Nd5 {[%emt 0:00:12]} Nxd5 {[%emt 0:00:38]} 14. exd5 {[%emt 0:00:07]} Bd6 {[%emt 0:02:19]} 15. Qd2 {[%emt 0:00:08]} f5 {[%emt 0:02:23]} 16. g4 {[%emt 0:00:36]} f4 {[%emt 0:01:40]} 17. Bd3 {[%emt 0:04:24]} Kf7 {[%emt 0:04:12]} 18. g5 {[%emt 0:06:30]} h5 {[%emt 0:03:52]} 19. Bf2 {[%emt 0:02:13]} b4 {[%emt 0:13:13]} 20. Qe2 {[%emt 0:13:49]} Nb6 {[%emt 0:26:02]} 21. Rde1 {[%emt 0:20:33]} Bg4 {[%emt 0:03:29]} 22. Qf1 {[%emt 0:00:46]} Rac8 {[%emt 0:07:32]} 23. Be4 {[%emt 0:20:04]} Nc4 {[%emt 0:01:42]} 24. Qd3 {[%emt 0:02:43]} Rhg8 {[%emt 0:00:09]} 25. Kb1 {[%emt 0:00:13]} a5 {[%emt 0:03:46]} 26. Nd2 {[%emt 0:13:57]} Bd7 {[%emt 0:06:08]} 27. Nxc4 {[%emt 0:01:36]} Qxc4 {[%emt 0:00:03]} 28. Qxc4 {[%emt 0:00:08]} Rxc4 {[%emt 0:00:05]} 29. Bd3 {[%emt 0:00:05]} Rcc8 {[%emt 0:00:23]} 30. Rc1 {[%emt 0:03:33]} Bf5 {[%emt 0:00:39]} 31. Bxf5 {[%emt 0:00:31]} gxf5 {[%emt 0:00:02]} 32. h4 {[%emt 0:00:06]} Bc5 {[%emt 0:07:32]} 33. Bxc5 {[%emt 0:00:22]} Rxc5 {[%emt 0:00:01]} 34. Rhd1 {[%emt 0:02:34]} Rd8 {[%emt 0:01:51]} 35. c4 {[%emt 0:05:23]} bxc3 {[%emt 0:00:41]} 36. d6 {[%emt 0:00:05]} e4 {[%emt 0:04:27]} 37. bxc3 {[%emt 0:03:05]} f3 {[%emt 0:00:38]} 38. Kc2 {[%emt 0:00:04]} e3 {[%emt 0:07:44]} 39. Rf1 {[%emt 0:00:39]} f2 {[%emt 0:00:23]} 40. Kd3 {[%emt 0:00:01]} Re5 {[%emt 0:00:32]} 41. Ke2 {[%emt 0:30:42]} Rxd6 {[%emt 0:03:01]} 42. Rfd1 {[%emt 0:00:00]} Rxd1 {[%emt 0:02:50]} 43. Rxd1 {[%emt 0:00:00]} f4 {[%emt 0:00:28]} 44. Rb1 {[%emt 0:00:00]} Rd5 {[%emt 0:01:34]} 45. Kf3 {[%emt 0:00:00]} Rb5 {[%emt 0:02:58]} 46. Rc1 {[%emt 0:00:00]} Rb2 {[%emt 0:00:58]} 47. a4 {[%emt 0:00:00]} Rc2 {[%emt 0:01:06]} 0-1

[Event "Lueneburg Open-A 2019"]
[Site "Lueneburg"]
[Date "2019.08.10"]
[Round "8.9"]
[White "Chennaoui, Yasin"]
[Black "Poeck, Ole"]
[Result "0-1"]
[ECO "A25"]
[WhiteElo "2092"]
[BlackElo "2259"]
[Annotator "NA"]
[PlyCount "158"]
[EventDate "2019.08.03"]
[EventType "swiss"]
[EventCountry "GER"]
[SourceTitle "playchess.com"]
[Source "ChessBase"]
[SourceQuality "1"]
[TimeControl "40/5400+30:1800+30"]

1. g3 {[%emt 0:01:20]} e5 {[%emt 0:00:00]} 2. c4 {[%emt 0:00:06]} Nc6 {[%emt 0:00:02]} 3. Bg2 {[%emt 0:00:03]} g6 {[%emt 0:00:08]} 4. Nc3 {[%emt 0:00:03]} Bg7 {[%emt 0:00:09]} 5. e3 {[%emt 0:00:22]} d6 {[%emt 0:00:09]} 6. Nge2 {[%emt 0:00:03]} h5 {[%emt 0:00:05]} 7. h3 {[%emt 0:01:36]} h4 {[%emt 0:00:21]} 8. g4 {[%emt 0:01:11]} f5 {[%emt 0:00:27]} 9. gxf5 {[%emt 0:00:16]} Bxf5 {[%emt 0:00:07]} 10. e4 {[%emt 0:00:49]} Be6 {[%emt 0:00:39]} 11. d3 {[%emt 0:00:05]} Qd7 {[%emt 0:10:54]} 12. Bg5 {[%emt 0:00:45]} Bf6 {[%emt 0:05:32]} 13. Qd2 {[%emt 0:00:26]} O-O-O {[%emt 0:00:38]} 14. O-O-O {[%emt 0:00:09]} Rf8 {[%emt 0:00:22]} 15. f4 {[%emt 0:04:26]} Bxg5 {[%emt 0:18:47]} 16. fxg5 {[%emt 0:00:13]} Qd8 {[%emt 0:00:26]} 17. Rdf1 {[%emt 0:00:46]} Rxf1+ {[%emt 0:01:02]} 18. Rxf1 {[%emt 0:00:03]} Rh5 {[%emt 0:00:27]} 19. Nd5 {[%emt 0:12:22]} Qxg5 {[%emt 0:01:09]} 20. Rf8+ {[%emt 0:00:58]} Kd7 {[%emt 0:00:46]} 21. Bf3 {[%emt 0:00:19]} Qxd2+ {[%emt 0:01:35]} 22. Kxd2 {[%emt 0:02:01]} Rh8 {[%emt 0:00:30]} 23. Bg4 {[%emt 0:00:27]} Bxg4 {[%emt 0:01:40]} 24. hxg4 {[%emt 0:00:19]} Nce7 {[%emt 0:01:21]} 25. Nf6+ {[%emt 0:00:57]} Kc6 {[%emt 0:06:21]} 26. Ng1 {[%emt 0:02:59]} g5 {[%emt 0:08:35]} 27. Nh3 {[%emt 0:00:43]} Kb6 {[%emt 0:00:04]} 28. Nxg5 {[%emt 0:05:59]} h3 {[%emt 0:00:14]} 29. Nd7+ {[%emt 0:02:17]} Ka5 {[%emt 0:02:31]} 30. Ra8 {[%emt 0:00:58]} a6 {[%emt 0:01:28]} 31. Nxh3 {[%emt 0:45:45]} Rxh3 {[%emt 0:00:32]} 32. Kc3 {[%emt 0:00:20]} Nc6 {[%emt 0:27:51]} 33. Rxg8 {[%emt 0:03:45]} Rh2 {[%emt 0:00:16]} 34. Kb3 {[%emt 0:00:38]} Nd4+ {[%emt 0:01:29]} 35. Ka3 {[%emt 0:00:02]} Nc2+ {[%emt 0:00:08]} 36. Kb3 {[%emt 0:00:05]} Nd4+ {[%emt 0:03:58]} 37. Ka3 {[%emt 0:00:06]} c5 {[%emt 0:00:52]} 38. Rb8 {[%emt 0:11:10]} Nc2+ {[%emt 0:03:59]} 39. Kb3 {[%emt 0:00:07]} Na1+ {[%emt 0:00:09]} 40. Ka3 {[%emt 0:00:08]} Nc2+ {[%emt 0:00:05]} 41. Kb3 {[%emt 0:30:08]} Nd4+ {[%emt 0:30:32]} 42. Ka3 {[%emt 0:03:21]} Rd2 {[%emt 0:00:00]} 43. Nf6 {[%emt 0:00:00]} b5 {[%emt 0:00:00]} 44. cxb5 {[%emt 0:00:00]} axb5 {[%emt 0:00:00]} 45. Ra8+ {[%emt 0:00:00]} Kb6 {[%emt 0:00:00]} 46. b4 {[%emt 0:00:00]} Kb7 {[%emt 0:00:00]} 47. Rh8 {[%emt 0:00:00]} Nc2+ {[%emt 0:00:00]} 48. Kb3 {[%emt 0:00:00]} Nxb4 {[%emt 0:00:00]} 49. Rh7+ {[%emt 0:00:00]} Kc6 {[%emt 0:00:00]} 50. a3 {[%emt 0:00:00]} Rxd3+ {[%emt 0:00:00]} 51. Kb2 {[%emt 0:00:00]} Na6 {[%emt 0:00:00]} 52. Nd5 {[%emt 0:00:00]} b4 {[%emt 0:01:34]} 53. a4 {[%emt 0:00:00]} Ra3 {[%emt 0:00:28]} 54. Ra7 {[%emt 0:00:00]} Rxa4 {[%emt 0:00:05]} 55. Nc7 {[%emt 0:00:00]} Ra3 {[%emt 0:01:15]} 56. Nxa6 {[%emt 0:00:00]} Kb6 {[%emt 0:00:04]} 57. Rd7 {[%emt 0:04:42]} Kxa6 {[%emt 0:00:07]} 58. Rxd6+ {[%emt 0:00:05]} Kb5 {[%emt 0:00:05]} 59. Rd5 {[%emt 0:01:08]} Rg3 {[%emt 0:00:03]} 60. Rxe5 {[%emt 0:00:07]} Rxg4 {[%emt 0:00:13]} 61. Re8 {[%emt 0:01:12]} Kc4 {[%emt 0:00:03]} 62. e5 {[%emt 0:00:06]} Rg2+ {[%emt 0:00:05]} 63. Kc1 {[%emt 0:00:13]} Kc3 {[%emt 0:00:05]} 64. Kd1 {[%emt 0:00:08]} b3 {[%emt 0:00:13]} 65. e6 {[%emt 0:00:43]} b2 {[%emt 0:00:02]} 66. Rb8 {[%emt 0:00:07]} b1=Q+ {[%emt 0:00:11]} 67. Rxb1 {[%emt 0:00:06]} Rg1+ {[%emt 0:00:03]} 68. Ke2 {[%emt 0:00:07]} Rxb1 {[%emt 0:00:02]} 69. e7 {[%emt 0:00:05]} Rb8 {[%emt 0:00:02]} 70. e8=Q {[%emt 0:00:07]} Rxe8+ {[%emt 0:00:02]} 71. Kf3 {[%emt 0:00:07]} Kd4 {[%emt 0:00:04]} 72. Kf4 {[%emt 0:00:04]} Rf8+ {[%emt 0:00:06]} 73. Kg5 {[%emt 0:00:03]} c4 {[%emt 0:00:06]} 74. Kg6 {[%emt 0:00:02]} c3 {[%emt 0:00:07]} 75. Kg7 {[%emt 0:00:03]} Rf2 {[%emt 0:00:04]} 76. Kg8 {[%emt 0:00:03]} c2 {[%emt 0:00:03]} 77. Kh7 {[%emt 0:00:04]} Rg2 {[%emt 0:00:05]} 78. Kh8 {[%emt 0:00:03]} c1=R {[%emt 0:00:08]} 79. Kh7 {[%emt 0:00:04]} Rh1# {[%emt 0:01:42]} 0-1

[Event "Lueneburg Open-A 2019"]
[Site "Lueneburg"]
[Date "2019.08.10"]
[Round "8.10"]
[White "von Estorff, Jacob"]
[Black "Voigt, Martin"]
[Result "0-1"]
[ECO "B12"]
[WhiteElo "2055"]
[BlackElo "2344"]
[Annotator "NA RC"]
[PlyCount "70"]
[EventDate "2019.08.03"]
[EventType "swiss"]
[EventCountry "GER"]
[SourceTitle "playchess.com"]
[Source "ChessBase"]
[SourceQuality "1"]
[TimeControl "40/5400+30:1800+30"]

1. e4 {[%emt 0:00:00]} c6 {[%emt 0:00:00]} 2. d4 {[%emt 0:00:22]} d5 {[%emt 0:00:00]} 3. e5 {[%emt 0:01:13]} c5 {[%emt 0:00:00]} 4. c3 {[%emt 0:00:29]} Nc6 {[%emt 0:01:45]} 5. Nf3 {[%emt 0:01:18]} Bg4 {[%emt 0:00:25]} 6. Be2 {[%emt 0:00:13]} e6 {[%emt 0:00:47]} 7. O-O {[%emt 0:00:15]} Nge7 {[%emt 0:01:00]} 8. Be3 {[%emt 0:06:40]} Nf5 {[%emt 0:01:04]} 9. Nbd2 {[%emt 0:00:22]} Be7 {[%emt 0:01:17]} 10. h3 {[%emt 0:01:26]} Bxf3 {[%emt 0:00:18]} 11. Nxf3 {[%emt 0:00:07]} cxd4 {[%emt 0:00:13]} 12. cxd4 {[%emt 0:00:42]} O-O {[%emt 0:00:29]} 13. a3 {[%emt 0:04:49]} f6 {[%emt 0:12:07]} 14. Bb5 {[%emt 0:05:49]} Qb6 {[%emt 0:04:48]} 15. Bxc6 {[%emt 0:00:46]} bxc6 {[%emt 0:01:10]} 16. Qd2 {[%emt 0:01:46]} Nxe3 {[%emt 0:03:35]} 17. Qxe3 {[%emt 0:02:40]} c5 {[%emt 0:02:43]} 18. Rac1 {[%emt 0:02:29]} c4 {[%emt 0:15:55]} 19. Rc2 {[%emt 0:02:01]} f5 {[%emt 0:01:31]} 20. Nd2 {[%emt 0:03:45]} a5 {[%emt 0:00:52]} 21. f4 {[%emt 0:04:02]} Rab8 {[%emt 0:01:34]} 22. Rf2 {[%emt 0:06:34]} Rb7 {[%emt 0:01:15]} 23. Nb1 {[%emt 0:00:44]} Rfb8 {[%emt 0:02:22]} 24. Nc3 {[%emt 0:00:28]} Qc6 {[%emt 0:00:13]} 25. Kh2 {[%emt 0:02:28]} Rb3 {[%emt 0:00:16]} 26. Qc1 {[%emt 0:04:06]} h5 {[%emt 0:06:00]} 27. Qd1 {[%emt 0:03:15]} h4 {[%emt 0:00:34]} 28. Qh5 {[%emt 0:01:33]} Qe8 {[%emt 0:01:40]} 29. Qf3 {[%emt 0:13:18]} Qg6 {[%emt 0:04:50]} 30. Nxd5 {[%emt 0:22:47]} Qg3+ {[%emt 0:02:22]} 31. Kg1 {[%emt 0:01:25]} Rxf3 {[%emt 0:00:17]} 32. Rxf3 {[%emt 0:00:36]} exd5 {[%emt 0:01:08]} 33. Rxg3 {[%emt 0:00:06]} hxg3 {[%emt 0:00:05]} 34. Kf1 {[%emt 0:00:13]} Rb3 {[%emt 0:00:35]} 35. Ke2 {[%emt 0:00:10]} Kf7 {[%emt 0:00:12]} 0-1